Workbook

Sheet Introduction
G1: =RIGHT(CELL("filename",A1), LEN(CELL("filename",A1)) - SEARCH("]", CELL("filename",A1))) -> Introduction
G2: by Hugues Pirotte
D4: Below is a list of the worksheets of the file, by order of appearance: (CTRL+h = back to "Introduction") | H4: =MID(CELL("filename",A1),SEARCH("-",CELL("filename",A1))+7,SEARCH(".",CELL("filename",A1))-SEARCH("-",CELL("filename",A1))-7) -> Volatilites
C5: 1 | D5: Introduction
C6: 2 | D6: GARCH(1,1) Estimation
C7: 3 | D7: VIX

Sheet GARCH(1,1) Estimation
A1: =MID(CELL("filename",A1),SEARCH("-",CELL("filename",A1))+7,SEARCH(".",CELL("filename",A1))-SEARCH("-",CELL("filename",A1))-7) & " > " & RIGHT(CELL("filename",A1), LEN(CELL("filename",A1)) - SEARCH("]", CELL("filename",A1))) -> Volatilites > GARCH(1,1) Estimation
B4: 1 | D4: Parameters | H4: Resulting VL
D5: w | E5: a | F5: b | H5: VL
D6: 0.0006 | E6: 0.1 | F6: 0.83 | H6: =D6/(1-E6-F6) -> 0.008571428571
B8: 2 | D8: Date | E8: S=JPY/USD | F8: return* | G8: vi | H8: -ln(vi)- u2/vi | I8: =SUM(H10:H531) -> 2908.104789
D9: 1999-03-12 | E9: 118.7
D10: 1999-03-19 | E10: 117.16 | F10: =LN(E10/E9) -> -0.01305877966 | G10: =F10^2 -> 0.0001705317261 | H10: =-LN(G10)-F10^2/G10 -> 7.676589202
D11: 1999-03-26 | E11: 120.28 | F11: =LN(E11/E10) -> 0.02628183616 | G11: =$D$6+$E$6*F11^2+$F$6*G10 -> 0.0008106148239 | H11: =-LN(G11)-F11^2/G11 -> 6.265605195
D12: 1999-04-02 | E12: 120.44 | F12: 0.001329345493 | G12: =$D$6+$E$6*F12^2+$F$6*G11 -> 0.00127298702 | H12: =-LN(G12)-F12^2/G12 -> 6.665000957
D13: 1999-04-09 | E13: 120.88 | F13: 0.003646614351 | G13: =$D$6+$E$6*F13^2+$F$6*G12 -> 0.001657909006 | H13: =-LN(G13)-F13^2/G13 -> 6.394177282
D14: 1999-04-16 | E14: 117.78 | F14: -0.02597984045 | G14: =$D$6+$E$6*F14^2+$F$6*G13 -> 0.002043559686 | H14: =-LN(G14)-F14^2/G14 -> 5.862779495
D15: 1999-04-23 | E15: 119.45 | F15: 0.01407939626 | G15: =$D$6+$E$6*F15^2+$F$6*G14 -> 0.002315977479 | H15: =-LN(G15)-F15^2/G15 -> 5.982331333
D16: 1999-04-30 | E16: 119.33 | F16: -0.00100510939 | G16: =$D$6+$E$6*F16^2+$F$6*G15 -> 0.002522362332 | H16: =-LN(G16)-F16^2/G16 -> 5.982158868
D17: 1999-05-07 | E17: 120.8021 | F17: 0.01226090507 | G17: =$D$6+$E$6*F17^2+$F$6*G16 -> 0.002708593715 | H17: =-LN(G17)-F17^2/G17 -> 5.855824654
D18: 1999-05-14 | E18: 122.75 | F18: 0.01599609722 | G18: =$D$6+$E$6*F18^2+$F$6*G17 -> 0.002873720296 | H18: =-LN(G18)-F18^2/G18 -> 5.763108141
D19: 1999-05-21 | E19: 124.03 | F19: 0.01037370515 | G19: =$D$6+$E$6*F19^2+$F$6*G18 -> 0.002995949222 | H19: =-LN(G19)-F19^2/G19 -> 5.774574408
D20: 1999-05-28 | E20: 121.52 | F20: -0.02044461354 | G20: =$D$6+$E$6*F20^2+$F$6*G19 -> 0.003128436076 | H20: =-LN(G20)-F20^2/G20 -> 5.633614651
D21: 1999-06-04 | E21: 122.13 | F21: 0.005007192895 | G21: =$D$6+$E$6*F21^2+$F$6*G20 -> 0.003199109141 | H21: =-LN(G21)-F21^2/G21 -> 5.737045725
D22: 1999-06-11 | E22: 117.95 | F22: -0.03482524533 | G22: =$D$6+$E$6*F22^2+$F$6*G21 -> 0.003376540359 | H22: =-LN(G22)-F22^2/G22 -> 5.331720118
D23: 1999-06-18 | E23: 120.45 | F23: 0.02097392321 | G23: =$D$6+$E$6*F23^2+$F$6*G22 -> 0.003446519043 | H23: =-LN(G23)-F23^2/G23 -> 5.54275292
D24: 1999-06-25 | E24: 121.4 | F24: 0.007856149565 | G24: =$D$6+$E$6*F24^2+$F$6*G23 -> 0.003466782714 | H24: =-LN(G24)-F24^2/G24 -> 5.6467253
D25: 1999-07-02 | E25: 121.02 | F25: -0.003135057431 | G25: =$D$6+$E$6*F25^2+$F$6*G24 -> 0.003478412511 | H25: =-LN(G25)-F25^2/G25 -> 5.658353669
D26: 1999-07-09 | E26: 122.38 | F26: 0.01117513684 | G26: =$D$6+$E$6*F26^2+$F$6*G25 -> 0.003499570753 | H26: =-LN(G26)-F26^2/G26 -> 5.619429531
D27: 1999-07-16 | E27: 120.95 | F27: -0.01175372098 | G27: =$D$6+$E$6*F27^2+$F$6*G26 -> 0.003518458721 | H27: =-LN(G27)-F27^2/G27 -> 5.61046791
D28: 1999-07-23 | E28: 116.58 | F28: -0.03679950444 | G28: =$D$6+$E$6*F28^2+$F$6*G27 -> 0.003655741091 | H28: =-LN(G28)-F28^2/G28 -> 5.241024434
D29: 1999-07-30 | E29: 114.5 | F29: -0.01800290962 | G29: =$D$6+$E$6*F29^2+$F$6*G28 -> 0.003666675581 | H29: =-LN(G29)-F29^2/G29 -> 5.520077873
D30: 1999-08-06 | E30: 114.92 | F30: 0.003661411117 | G30: =$D$6+$E$6*F30^2+$F$6*G29 -> 0.003644681325 | H30: =-LN(G30)-F30^2/G30 -> 5.610808128
D31: 1999-08-13 | E31: 115.82 | F31: 0.007801027687 | G31: =$D$6+$E$6*F31^2+$F$6*G30 -> 0.003631171103 | H31: =-LN(G31)-F31^2/G31 -> 5.601440724
D32: 1999-08-20 | E32: 111.36 | F32: -0.03926906521 | G32: =$D$6+$E$6*F32^2+$F$6*G31 -> 0.003768077964 | H32: =-LN(G32)-F32^2/G32 -> 5.171947244
D33: 1999-08-27 | E33: 111.45 | F33: 0.0008078632458 | G33: =$D$6+$E$6*F33^2+$F$6*G32 -> 0.003727569974 | H33: =-LN(G33)-F33^2/G33 -> 5.591823654
D34: 1999-09-03 | E34: 109.93 | F34: -0.01373226024 | G34: =$D$6+$E$6*F34^2+$F$6*G33 -> 0.003712740576 | H34: =-LN(G34)-F34^2/G34 -> 5.545193662
D35: 1999-09-10 | E35: 108.75 | F35: -0.01079212962 | G35: =$D$6+$E$6*F35^2+$F$6*G34 -> 0.003693221684 | H35: =-LN(G35)-F35^2/G35 -> 5.569719948
D36: 1999-09-17 | E36: 107.13 | F36: -0.01500861969 | G36: =$D$6+$E$6*F36^2+$F$6*G35 -> 0.003687899864 | H36: =-LN(G36)-F36^2/G36 -> 5.541617653
D37: 1999-09-24 | E37: 104.24 | F37: -0.02734711746 | G37: =$D$6+$E$6*F37^2+$F$6*G36 -> 0.003735743371 | H37: =-LN(G37)-F37^2/G37 -> 5.389616747
D38: 1999-10-01 | E38: 105.13 | F38: 0.008501746771 | G38: =$D$6+$E$6*F38^2+$F$6*G37 -> 0.003707894968 | H38: =-LN(G38)-F38^2/G38 -> 5.577797499
D39: 1999-10-08 | E39: 107.39 | F39: 0.02126938828 | G39: =$D$6+$E$6*F39^2+$F$6*G38 -> 0.003722791511 | H39: =-LN(G39)-F39^2/G39 -> 5.471763298
D40: 1999-10-15 | E40: 105.51 | F40: -0.01766133272 | G40: =$D$6+$E$6*F40^2+$F$6*G39 -> 0.003721109221 | H40: =-LN(G40)-F40^2/G40 -> 5.509908291
D41: 1999-10-22 | E41: 105.71 | F41: 0.001893760627 | G41: =$D$6+$E$6*F41^2+$F$6*G40 -> 0.003688879287 | H41: =-LN(G41)-F41^2/G41 -> 5.601460383
D42: 1999-10-29 | E42: 104.11 | F42: -0.01525146329 | G42: =$D$6+$E$6*F42^2+$F$6*G41 -> 0.003685030521 | H42: =-LN(G42)-F42^2/G42 -> 5.540354298
D43: 1999-11-05 | E43: 106.08 | F43: 0.01874549395 | G43: =$D$6+$E$6*F43^2+$F$6*G42 -> 0.003693714687 | H43: =-LN(G43)-F43^2/G43 -> 5.505989804
D44: 1999-11-12 | E44: 105.27 | F44: -0.007665048174 | G44: =$D$6+$E$6*F44^2+$F$6*G43 -> 0.003671658486 | H44: =-LN(G44)-F44^2/G44 -> 5.591110065
D45: 1999-11-19 | E45: 106.34 | F45: 0.01011302981 | G45: =$D$6+$E$6*F45^2+$F$6*G44 -> 0.003657703881 | H45: =-LN(G45)-F45^2/G45 -> 5.582958598
D46: 1999-11-26 | E46: 101.72 | F46: -0.04441756752 | G46: =$D$6+$E$6*F46^2+$F$6*G45 -> 0.003833186252 | H46: =-LN(G46)-F46^2/G46 -> 5.049364292
D47: 1999-12-03 | E47: 102.69 | F47: 0.009490800656 | G47: =$D$6+$E$6*F47^2+$F$6*G46 -> 0.003790552119 | H47: =-LN(G47)-F47^2/G47 -> 5.551480485
D48: 1999-12-10 | E48: 102.3 | F48: -0.003805068253 | G48: =$D$6+$E$6*F48^2+$F$6*G47 -> 0.003747606113 | H48: =-LN(G48)-F48^2/G48 -> 5.582774601
D49: 1999-12-17 | E49: 103.13 | F49: 0.00808065537 | G49: =$D$6+$E$6*F49^2+$F$6*G48 -> 0.003717042773 | H49: =-LN(G49)-F49^2/G49 -> 5.577259961
D50: 1999-12-24 | E50: 102.23 | F50: -0.008765151559 | G50: =$D$6+$E$6*F50^2+$F$6*G49 -> 0.00369282829 | H50: =-LN(G50)-F50^2/G50 -> 5.580558022
D51: 1999-12-31 | E51: 102.12 | F51: -0.001076584396 | G51: =$D$6+$E$6*F51^2+$F$6*G50 -> 0.003665163384 | H51: =-LN(G51)-F51^2/G51 -> 5.608566135
D52: 2000-01-07 | E52: 105.31 | F52: 0.03075978902 | G52: =$D$6+$E$6*F52^2+$F$6*G51 -> 0.003736702071 | H52: =-LN(G52)-F52^2/G52 -> 5.336343384
D53: 2000-01-14 | E53: 105.78 | F53: 0.004453084245 | G53: =$D$6+$E$6*F53^2+$F$6*G52 -> 0.003703445715 | H53: =-LN(G53)-F53^2/G53 -> 5.593137157
D54: 2000-01-21 | E54: 104.83 | F54: -0.009021475173 | G54: =$D$6+$E$6*F54^2+$F$6*G53 -> 0.003681998644 | H54: =-LN(G54)-F54^2/G54 -> 5.582195533
D55: 2000-01-28 | E55: 107.12 | F55: 0.02160971092 | G55: =$D$6+$E$6*F55^2+$F$6*G54 -> 0.003702756836 | H55: =-LN(G55)-F55^2/G55 -> 5.47256091
D56: 2000-02-04 | E56: 107.17 | F56: 0.000466657342 | G56: =$D$6+$E$6*F56^2+$F$6*G55 -> 0.00367330995 | H56: =-LN(G56)-F56^2/G56 -> 5.606602845
D57: 2000-02-11 | E57: 108.82 | F57: 0.01527878233 | G57: =$D$6+$E$6*F57^2+$F$6*G56 -> 0.003672191378 | H57: =-LN(G57)-F57^2/G57 -> 5.543396694
D58: 2000-02-18 | E58: 111.01 | F58: 0.01992514629 | G58: =$D$6+$E$6*F58^2+$F$6*G57 -> 0.003687619989 | H58: =-LN(G58)-F58^2/G58 -> 5.495113398
D59: 2000-02-25 | E59: 110.19 | F59: -0.007414138845 | G59: =$D$6+$E$6*F59^2+$F$6*G58 -> 0.003666221536 | H59: =-LN(G59)-F59^2/G59 -> 5.593600212
D60: 2000-03-03 | E60: 107.71 | F60: -0.02276371814 | G60: =$D$6+$E$6*F60^2+$F$6*G59 -> 0.003694782562 | H60: =-LN(G60)-F60^2/G60 -> 5.460585303
D61: 2000-03-10 | E61: 106.22 | F61: -0.01393001537 | G61: =$D$6+$E$6*F61^2+$F$6*G60 -> 0.003686074059 | H61: =-LN(G61)-F61^2/G61 -> 5.550550509
D62: 2000-03-17 | E62: 106.79 | F62: 0.005351874189 | G62: =$D$6+$E$6*F62^2+$F$6*G61 -> 0.003662305725 | H62: =-LN(G62)-F62^2/G62 -> 5.601841442
D63: 2000-03-24 | E63: 106.88 | F63: 0.0008424206049 | G63: =$D$6+$E$6*F63^2+$F$6*G62 -> 0.003639784719 | H63: =-LN(G63)-F63^2/G63 -> 5.615635766
D64: 2000-03-31 | E64: 102.98 | F64: -0.03717191517 | G64: =$D$6+$E$6*F64^2+$F$6*G63 -> 0.003759196444 | H64: =-LN(G64)-F64^2/G64 -> 5.215984461
D65: 2000-04-07 | E65: 105.48 | F65: 0.02398656687 | G65: =$D$6+$E$6*F65^2+$F$6*G64 -> 0.003777668588 | H65: =-LN(G65)-F65^2/G65 -> 5.426343877
D66: 2000-04-14 | E66: 104.78 | F66: -0.006658447505 | G66: =$D$6+$E$6*F66^2+$F$6*G65 -> 0.00373989842 | H66: =-LN(G66)-F66^2/G66 -> 5.576842249
D67: 2000-04-21 | E67: 105.84 | F67: 0.01006560583 | G67: =$D$6+$E$6*F67^2+$F$6*G66 -> 0.003714247331 | H67: =-LN(G67)-F67^2/G67 -> 5.568301444
D68: 2000-04-28 | E68: 108.2 | F68: 0.02205284661 | G68: =$D$6+$E$6*F68^2+$F$6*G67 -> 0.003731458089 | H68: =-LN(G68)-F68^2/G68 -> 5.460624308
D69: 2000-05-05 | E69: 108.58 | F69: 0.003505862065 | G69: =$D$6+$E$6*F69^2+$F$6*G68 -> 0.003698339321 | H69: =-LN(G69)-F69^2/G69 -> 5.59654799
D70: 2000-05-12 | E70: 108.51 | F70: -0.0006448938452 | G70: =$D$6+$E$6*F70^2+$F$6*G69 -> 0.003669663225 | H70: =-LN(G70)-F70^2/G70 -> 5.607542054
D71: 2000-05-19 | E71: 106.94 | F71: -0.01457440511 | G71: =$D$6+$E$6*F71^2+$F$6*G70 -> 0.003667061805 | H71: =-LN(G71)-F71^2/G71 -> 5.550439882
D72: 2000-05-26 | E72: 107.11 | F72: 0.001588414256 | G72: =$D$6+$E$6*F72^2+$F$6*G71 -> 0.003643913604 | H72: =-LN(G72)-F72^2/G72 -> 5.614004605
D73: 2000-06-02 | E73: 108.08 | F73: 0.009015349875 | G73: =$D$6+$E$6*F73^2+$F$6*G72 -> 0.003632575945 | H73: =-LN(G73)-F73^2/G73 -> 5.595438904
D74: 2000-06-09 | E74: 106.87 | F74: -0.01125855112 | G74: =$D$6+$E$6*F74^2+$F$6*G73 -> 0.003627713532 | H74: =-LN(G74)-F74^2/G74 -> 5.584211976
D75: 2000-06-16 | E75: 106.24 | F75: =LN(E75/E74) -> -0.005912456809 | G75: =$D$6+$E$6*F75^2+$F$6*G74 -> 0.003614497946 | H75: =-LN(G75)-F75^2/G75 -> 5.613130944
D76: 2000-06-23 | E76: 104.67 | F76: -0.01488814186 | G76: =$D$6+$E$6*F76^2+$F$6*G75 -> 0.003622198972 | H76: =-LN(G76)-F76^2/G76 -> 5.559480008
D77: 2000-06-30 | E77: 106.02 | F77: 0.01281521169 | G77: =$D$6+$E$6*F77^2+$F$6*G76 -> 0.003622848112 | H77: =-LN(G77)-F77^2/G77 -> 5.57516315
D78: 2000-07-07 | E78: 107.91 | F78: 0.01766979082 | G78: =$D$6+$E$6*F78^2+$F$6*G77 -> 0.003638186083 | H78: =-LN(G78)-F78^2/G78 -> 5.530452145
D79: 2000-07-14 | E79: 107.98 | F79: 0.0006484784145 | G79: =$D$6+$E$6*F79^2+$F$6*G78 -> 0.003619736502 | H79: =-LN(G79)-F79^2/G79 -> 5.62123787
D80: 2000-07-21 | E80: 108.87 | F80: 0.008208485103 | G80: =$D$6+$E$6*F80^2+$F$6*G79 -> 0.003611119219 | H80: =-LN(G80)-F80^2/G80 -> 5.605078701
D81: 2000-07-28 | E81: 109.62 | F81: 0.006865329725 | G81: =$D$6+$E$6*F81^2+$F$6*G80 -> 0.003601942227 | H81: =-LN(G81)-F81^2/G81 -> 5.6131967
D82: 2000-08-04 | E82: 108.6 | F82: -0.009348432118 | G82: =$D$6+$E$6*F82^2+$F$6*G81 -> 0.003598351367 | H82: =-LN(G82)-F82^2/G82 -> 5.602992486
D83: 2000-08-11 | E83: 108.63 | F83: 0.0002762049458 | G83: =$D$6+$E$6*F83^2+$F$6*G82 -> 0.003586639263 | H83: =-LN(G83)-F83^2/G83 -> 5.630518383
D84: 2000-08-18 | E84: 108.38 | F84: -0.002304042308 | G84: =$D$6+$E$6*F84^2+$F$6*G83 -> 0.00357744145 | H84: =-LN(G84)-F84^2/G84 -> 5.6316235
D85: 2000-08-25 | E85: 106.95 | F85: -0.01328213461 | G85: =$D$6+$E$6*F85^2+$F$6*G84 -> 0.003586917913 | H85: =-LN(G85)-F85^2/G85 -> 5.581279044
D86: 2000-09-01 | E86: 105.93 | F86: -0.00958293692 | G86: =$D$6+$E$6*F86^2+$F$6*G85 -> 0.003586325136 | H86: =-LN(G86)-F86^2/G86 -> 5.605020894
D87: 2000-09-08 | E87: 106.13 | F87: 0.001886259165 | G87: =$D$6+$E$6*F87^2+$F$6*G86 -> 0.00357700566 | H87: =-LN(G87)-F87^2/G87 -> 5.632234557
D88: 2000-09-15 | E88: 107.24 | F88: 0.01040455559 | G88: =$D$6+$E$6*F88^2+$F$6*G87 -> 0.003579740176 | H88: =-LN(G88)-F88^2/G88 -> 5.602224098
D89: 2000-09-22 | E89: 108.03 | F89: 0.007339652961 | G89: =$D$6+$E$6*F89^2+$F$6*G88 -> 0.003576571396 | H89: =-LN(G89)-F89^2/G89 -> 5.618288596
D90: 2000-09-29 | E90: 108.08 | F90: 0.000462727323 | G90: =$D$6+$E$6*F90^2+$F$6*G89 -> 0.003568575671 | H90: =-LN(G90)-F90^2/G90 -> 5.635528734
D91: 2000-10-06 | E91: 108.8 | F91: 0.00663964077 | G91: =$D$6+$E$6*F91^2+$F$6*G90 -> 0.00356632629 | H91: =-LN(G91)-F91^2/G91 -> 5.623857851
D92: 2000-10-13 | E92: 107.85 | F92: -0.008769961587 | G92: =$D$6+$E$6*F92^2+$F$6*G91 -> 0.003567742043 | H92: =-LN(G92)-F92^2/G92 -> 5.614264688
D93: 2000-10-20 | E93: 108.86 | F93: 0.009321280171 | G93: =$D$6+$E$6*F93^2+$F$6*G92 -> 0.003569914522 | H93: =-LN(G93)-F93^2/G93 -> 5.610875155
D94: 2000-10-27 | E94: 108.61 | F94: -0.002299168714 | G94: =$D$6+$E$6*F94^2+$F$6*G93 -> 0.003563557671 | H94: =-LN(G94)-F94^2/G94 -> 5.635512489
D95: 2000-11-03 | E95: 106.99 | F95: -0.01502811214 | G95: =$D$6+$E$6*F95^2+$F$6*G94 -> 0.003580337282 | H95: =-LN(G95)-F95^2/G95 -> 5.569219254
D96: 2000-11-10 | E96: 107.97 | F96: 0.009118038609 | G96: =$D$6+$E$6*F96^2+$F$6*G95 -> 0.003579993807 | H96: =-LN(G96)-F96^2/G96 -> 5.609171088
D97: 2000-11-17 | E97: 108.87 | F97: 0.008301099134 | G97: =$D$6+$E$6*F97^2+$F$6*G96 -> 0.003578285685 | H97: =-LN(G97)-F97^2/G97 -> 5.613614117
D98: 2000-11-24 | E98: 111.26 | F98: 0.02171529475 | G98: =$D$6+$E$6*F98^2+$F$6*G97 -> 0.003617132521 | H98: =-LN(G98)-F98^2/G98 -> 5.491706879
D99: 2000-12-01 | E99: 111.21 | F99: -0.0004494988164 | G99: =$D$6+$E$6*F99^2+$F$6*G98 -> 0.003602240197 | H99: =-LN(G99)-F99^2/G99 -> 5.62614326
D100: 2000-12-08 | E100: 111.32 | F100: 0.0009886308269 | G100: =$D$6+$E$6*F100^2+$F$6*G99 -> 0.003589957103 | H100: =-LN(G100)-F100^2/G100 -> 5.629342769
D101: 2000-12-15 | E101: 112.275 | F101: 0.008542282316 | G101: =$D$6+$E$6*F101^2+$F$6*G100 -> 0.003586961454 | H101: =-LN(G101)-F101^2/G101 -> 5.610106539
D102: 2000-12-22 | E102: 112.855 | F102: 0.00515258991 | G102: =$D$6+$E$6*F102^2+$F$6*G101 -> 0.003579832925 | H102: =-LN(G102)-F102^2/G102 -> 5.62502283
D103: 2000-12-29 | E103: 114.365 | F103: 0.0132912792 | G103: =$D$6+$E$6*F103^2+$F$6*G102 -> 0.003588927138 | H103: =-LN(G103)-F103^2/G103 -> 5.580678873
D104: 2001-01-05 | E104: 116.53 | F104: 0.01875366251 | G104: =$D$6+$E$6*F104^2+$F$6*G103 -> 0.00361397951 | H104: =-LN(G104)-F104^2/G104 -> 5.525629251
D105: 2001-01-12 | E105: 118.53 | F105: 0.01701734251 | G105: =$D$6+$E$6*F105^2+$F$6*G104 -> 0.003628561988 | H105: =-LN(G105)-F105^2/G105 -> 5.539110395
D106: 2001-01-19 | E106: 117.07 | F106: -0.0123940466 | G106: =$D$6+$E$6*F106^2+$F$6*G105 -> 0.003627067689 | H106: =-LN(G106)-F106^2/G106 -> 5.576979081
D107: 2001-01-26 | E107: 117.175 | F107: 0.0008964973172 | G107: =$D$6+$E$6*F107^2+$F$6*G106 -> 0.003610546553 | H107: =-LN(G107)-F107^2/G107 -> 5.623673518
D108: 2001-02-02 | E108: 115.7 | F108: -0.01266790961 | G108: =$D$6+$E$6*F108^2+$F$6*G107 -> 0.003612801232 | H108: =-LN(G108)-F108^2/G108 -> 5.578853143
D109: 2001-02-09 | E109: 117.53 | F109: 0.01569298595 | G109: =$D$6+$E$6*F109^2+$F$6*G108 -> 0.003623252004 | H109: =-LN(G109)-F109^2/G109 -> 5.552414039
D110: 2001-02-16 | E110: 115.75 | F110: -0.01526092718 | G110: =$D$6+$E$6*F110^2+$F$6*G109 -> 0.003630588753 | H110: =-LN(G110)-F110^2/G110 -> 5.554212208
D111: 2001-02-23 | E111: 115.8 | F111: 0.0004318721726 | G111: =$D$6+$E$6*F111^2+$F$6*G110 -> 0.003613407316 | H111: =-LN(G111)-F111^2/G111 -> 5.62305248
D112: 2001-03-02 | E112: 118.97 | F112: 0.02700679535 | G112: =$D$6+$E$6*F112^2+$F$6*G111 -> 0.003672064772 | H112: =-LN(G112)-F112^2/G112 -> 5.408375315
D113: 2001-03-09 | E113: 119.52 | F113: 0.004612360896 | G113: =$D$6+$E$6*F113^2+$F$6*G112 -> 0.003649941148 | H113: =-LN(G113)-F113^2/G113 -> 5.607215683
D114: 2001-03-16 | E114: 123.01 | F114: 0.0287819315 | G114: =$D$6+$E$6*F114^2+$F$6*G113 -> 0.003712291111 | H114: =-LN(G114)-F114^2/G114 -> 5.372955553
D115: 2001-03-23 | E115: 122.77 | F115: -0.001952966688 | G115: =$D$6+$E$6*F115^2+$F$6*G114 -> 0.00368158303 | H115: =-LN(G115)-F115^2/G115 -> 5.603376459
D116: 2001-03-30 | E116: 126.275 | F116: 0.02814938216 | G116: =$D$6+$E$6*F116^2+$F$6*G115 -> 0.003734952686 | H116: =-LN(G116)-F116^2/G116 -> 5.377865442
D117: 2001-04-06 | E117: 123.77 | F117: -0.0200370638 | G117: =$D$6+$E$6*F117^2+$F$6*G116 -> 0.003740159122 | H117: =-LN(G117)-F117^2/G117 -> 5.481283046
D118: 2001-04-13 | E118: 123.71 | F118: -0.0004848876772 | G118: =$D$6+$E$6*F118^2+$F$6*G117 -> 0.003704355583 | H118: =-LN(G118)-F118^2/G118 -> 5.598182497
D119: 2001-04-20 | E119: 122.38 | F119: -0.01080915884 | G119: =$D$6+$E$6*F119^2+$F$6*G118 -> 0.003686298926 | H119: =-LN(G119)-F119^2/G119 -> 5.571437144
D120: 2001-04-27 | E120: 124.05 | F120: 0.0135537521 | G120: =$D$6+$E$6*F120^2+$F$6*G119 -> 0.003677998528 | H120: =-LN(G120)-F120^2/G120 -> 5.55543977
D121: 2001-05-04 | E121: 121.33 | F121: -0.02217060407 | G121: =$D$6+$E$6*F121^2+$F$6*G120 -> 0.003701892347 | H121: =-LN(G121)-F121^2/G121 -> 5.466131572
D122: 2001-05-11 | E122: 122.285 | F122: 0.007840279884 | G122: =$D$6+$E$6*F122^2+$F$6*G121 -> 0.003678717647 | H122: =-LN(G122)-F122^2/G122 -> 5.588481429
D123: 2001-05-18 | E123: 123.54 | F123: 0.01021060432 | G123: =$D$6+$E$6*F123^2+$F$6*G122 -> 0.003663761291 | H123: =-LN(G123)-F123^2/G123 -> 5.580808862
D124: 2001-05-25 | E124: 120.65 | F124: -0.0236711982 | G124: =$D$6+$E$6*F124^2+$F$6*G123 -> 0.003696954434 | H124: =-LN(G124)-F124^2/G124 -> 5.44868181
D125: 2001-06-01 | E125: 119.27 | F125: -0.01150396148 | G125: =$D$6+$E$6*F125^2+$F$6*G124 -> 0.003681706293 | H125: =-LN(G125)-F125^2/G125 -> 5.568433371
D126: 2001-06-08 | E126: 120.87 | F126: 0.01332575728 | G126: =$D$6+$E$6*F126^2+$F$6*G125 -> 0.003673573804 | H126: =-LN(G126)-F126^2/G126 -> 5.558251595
D127: 2001-06-15 | E127: 122.93 | F127: 0.01689949981 | G127: =$D$6+$E$6*F127^2+$F$6*G126 -> 0.003677625567 | H127: =-LN(G127)-F127^2/G127 -> 5.527831036
D128: 2001-06-22 | E128: 124.5 | F128: 0.01269062823 | G128: =$D$6+$E$6*F128^2+$F$6*G127 -> 0.003668534425 | H128: =-LN(G128)-F128^2/G128 -> 5.564062114
D129: 2001-06-29 | E129: 124.62 | F129: 0.0009633912113 | G129: =$D$6+$E$6*F129^2+$F$6*G128 -> 0.003644976385 | H129: =-LN(G129)-F129^2/G129 -> 5.614150762
D130: 2001-07-06 | E130: 125.88 | F130: 0.01005996508 | G130: =$D$6+$E$6*F130^2+$F$6*G129 -> 0.003635450689 | H130: =-LN(G130)-F130^2/G130 -> 5.589184404
D131: 2001-07-13 | E131: 124.95 | F131: -0.007415414915 | G131: =$D$6+$E$6*F131^2+$F$6*G130 -> 0.00362292291 | H131: =-LN(G131)-F131^2/G131 -> 5.605296241
D132: 2001-07-20 | E132: 123.02 | F132: -0.0155667135 | G132: =$D$6+$E$6*F132^2+$F$6*G131 -> 0.003631258272 | H132: =-LN(G132)-F132^2/G132 -> 5.551443662
D133: 2001-07-27 | E133: 123.51 | F133: 0.00397518067 | G133: =$D$6+$E$6*F133^2+$F$6*G132 -> 0.003615524572 | H133: =-LN(G133)-F133^2/G133 -> 5.61814771
D134: 2001-08-03 | E134: 123.65 | F134: 0.001132869518 | G134: =$D$6+$E$6*F134^2+$F$6*G133 -> 0.003601013734 | H134: =-LN(G134)-F134^2/G134 -> 5.626183483
D135: 2001-08-10 | E135: 122 | F135: -0.01343394923 | G135: =$D$6+$E$6*F135^2+$F$6*G134 -> 0.003606888498 | H135: =-LN(G135)-F135^2/G135 -> 5.5748747
D136: 2001-08-17 | E136: 120.235 | F136: -0.01457288365 | G136: =$D$6+$E$6*F136^2+$F$6*G135 -> 0.003614954348 | H136: =-LN(G136)-F136^2/G136 -> 5.563928716
D137: 2001-08-24 | E137: 119.89 | F137: -0.002873505361 | G137: =$D$6+$E$6*F137^2+$F$6*G136 -> 0.003601237812 | H137: =-LN(G137)-F137^2/G137 -> 5.624184824
D138: 2001-08-31 | E138: 118.77 | F138: -0.009385805933 | G138: =$D$6+$E$6*F138^2+$F$6*G137 -> 0.003597836719 | H138: =-LN(G138)-F138^2/G138 -> 5.602937436
D139: 2001-09-07 | E139: 120.06 | F139: =LN(E139/E138) -> 0.01080276804 | G139: =$D$6+$E$6*F139^2+$F$6*G138 -> 0.003597874457 | H139: =-LN(G139)-F139^2/G139 -> 5.594976275
D140: 2001-09-14 | E140: 118.85 | F140: -0.01012942402 | G140: =$D$6+$E$6*F140^2+$F$6*G139 -> 0.003596496322 | H140: =-LN(G140)-F140^2/G140 -> 5.599265932
D141: 2001-09-21 | E141: 116.65 | F141: -0.01868419534 | G141: =$D$6+$E$6*F141^2+$F$6*G140 -> 0.003620001863 | H141: =-LN(G141)-F141^2/G141 -> 5.524844557
D142: 2001-09-28 | E142: 119.53 | F142: 0.02438938742 | G142: =$D$6+$E$6*F142^2+$F$6*G141 -> 0.003664085768 | H142: =-LN(G142)-F142^2/G142 -> 5.446832457
D143: 2001-10-05 | E143: 120.52 | F143: 0.008248328372 | G143: =$D$6+$E$6*F143^2+$F$6*G142 -> 0.00364799468 | H143: =-LN(G143)-F143^2/G143 -> 5.594927715
D144: 2001-10-12 | E144: 121.105 | F144: 0.004842223636 | G144: =$D$6+$E$6*F144^2+$F$6*G143 -> 0.003630180297 | H144: =-LN(G144)-F144^2/G144 -> 5.61201402
D145: 2001-10-19 | E145: 121.23 | F145: 0.00103162986 | G145: =$D$6+$E$6*F145^2+$F$6*G144 -> 0.003613156073 | H145: =-LN(G145)-F145^2/G145 -> 5.622879079
D146: 2001-10-26 | E146: 122.7 | F146: 0.01205278396 | G146: =$D$6+$E$6*F146^2+$F$6*G145 -> 0.0036134465 | H146: =-LN(G146)-F146^2/G146 -> 5.582890748
D147: 2001-11-02 | E147: 121.67 | F147: -0.008429889918 | G147: =$D$6+$E$6*F147^2+$F$6*G146 -> 0.0036062669 | H147: =-LN(G147)-F147^2/G147 -> 5.60537671
D148: 2001-11-09 | E148: 120.36 | F148: -0.01082521004 | G148: =$D$6+$E$6*F148^2+$F$6*G147 -> 0.003604920044 | H148: =-LN(G148)-F148^2/G148 -> 5.592948678
D149: 2001-11-16 | E149: 122.75 | F149: 0.01966251491 | G149: =$D$6+$E$6*F149^2+$F$6*G148 -> 0.003630745086 | H149: =-LN(G149)-F149^2/G149 -> 5.511833881
D150: 2001-11-23 | E150: 124.23 | F150: 0.01198491955 | G150: =$D$6+$E$6*F150^2+$F$6*G149 -> 0.003627882251 | H150: =-LN(G150)-F150^2/G150 -> 5.579513326
D151: 2001-11-30 | E151: 123.51 | F151: -0.005812561776 | G151: =$D$6+$E$6*F151^2+$F$6*G150 -> 0.003614520856 | H151: =-LN(G151)-F151^2/G151 -> 5.613448713
D152: 2001-12-07 | E152: 125.53 | F152: 0.01622264938 | G152: =$D$6+$E$6*F152^2+$F$6*G151 -> 0.003626369745 | H152: =-LN(G152)-F152^2/G152 -> 5.546950802
D153: 2001-12-14 | E153: 127.29 | F153: 0.01392317405 | G153: =$D$6+$E$6*F153^2+$F$6*G152 -> 0.003629272366 | H153: =-LN(G153)-F153^2/G153 -> 5.565308874
D154: 2001-12-21 | E154: 129.54 | F154: 0.01752176587 | G154: =$D$6+$E$6*F154^2+$F$6*G153 -> 0.003642997292 | H154: =-LN(G154)-F154^2/G154 -> 5.530673866
D155: 2001-12-28 | E155: 131.125 | F155: 0.01216135296 | G155: =$D$6+$E$6*F155^2+$F$6*G154 -> 0.003638477603 | H155: =-LN(G155)-F155^2/G155 -> 5.575541467
D156: 2002-01-04 | E156: 130.945 | F156: -0.001373679004 | G156: =$D$6+$E$6*F156^2+$F$6*G155 -> 0.00362012511 | H156: =-LN(G156)-F156^2/G156 -> 5.620725442
D157: 2002-01-11 | E157: 132.095 | F157: 0.008743972986 | G157: =$D$6+$E$6*F157^2+$F$6*G156 -> 0.003612349548 | H157: =-LN(G157)-F157^2/G157 -> 5.602231408
D158: 2002-01-18 | E158: 132.68 | F158: 0.00441885338 | G158: =$D$6+$E$6*F158^2+$F$6*G157 -> 0.003600202751 | H158: =-LN(G158)-F158^2/G158 -> 5.621341458
D159: 2002-01-25 | E159: 134.6 | F159: 0.01436720313 | G159: =$D$6+$E$6*F159^2+$F$6*G158 -> 0.003608809936 | H159: =-LN(G159)-F159^2/G159 -> 5.56717927
D160: 2002-02-01 | E160: 133.005 | F160: -0.01192069571 | G160: =$D$6+$E$6*F160^2+$F$6*G159 -> 0.003609522545 | H160: =-LN(G160)-F160^2/G160 -> 5.584810859
D161: 2002-02-08 | E161: 134.7 | F161: 0.01266336192 | G161: =$D$6+$E$6*F161^2+$F$6*G160 -> 0.003611939786 | H161: =-LN(G161)-F161^2/G161 -> 5.579112914
D162: 2002-02-15 | E162: 132.615 | F162: -0.01559988989 | G162: =$D$6+$E$6*F162^2+$F$6*G161 -> 0.003622245679 | H162: =-LN(G162)-F162^2/G162 -> 5.5534772
D163: 2002-02-22 | E163: 134.135 | F163: 0.01139656196 | G163: =$D$6+$E$6*F163^2+$F$6*G162 -> 0.003619452076 | H163: =-LN(G163)-F163^2/G163 -> 5.585548292
D164: 2002-03-01 | E164: 133.37 | F164: -0.005719534853 | G164: =$D$6+$E$6*F164^2+$F$6*G163 -> 0.003607416531 | H164: =-LN(G164)-F164^2/G164 -> 5.615695121
D165: 2002-03-08 | E165: 128.615 | F165: -0.03630377489 | G165: =$D$6+$E$6*F165^2+$F$6*G164 -> 0.003725952128 | H165: =-LN(G165)-F165^2/G165 -> 5.238707411
D166: 2002-03-15 | E166: 129.07 | F166: 0.003531447099 | G166: =$D$6+$E$6*F166^2+$F$6*G165 -> 0.003693787378 | H166: =-LN(G166)-F166^2/G166 -> 5.597726716
D167: 2002-03-22 | E167: 132.96 | F167: 0.02969343826 | G167: =$D$6+$E$6*F167^2+$F$6*G166 -> 0.003754013551 | H167: =-LN(G167)-F167^2/G167 -> 5.350061033
D168: 2002-03-29 | E168: 132.725 | F168: -0.001769012637 | G168: =$D$6+$E$6*F168^2+$F$6*G167 -> 0.003716144188 | H168: =-LN(G168)-F168^2/G168 -> 5.594226546
D169: 2002-04-05 | E169: 131.64 | F169: -0.008208394395 | G169: =$D$6+$E$6*F169^2+$F$6*G168 -> 0.00369113745 | H169: =-LN(G169)-F169^2/G169 -> 5.583566693
D170: 2002-04-12 | E170: 131.96 | F170: 0.002427922285 | G170: =$D$6+$E$6*F170^2+$F$6*G169 -> 0.003664233564 | H170: =-LN(G170)-F170^2/G170 -> 5.607527346
D171: 2002-04-19 | E171: 130.365 | F171: -0.0121606378 | G171: =$D$6+$E$6*F171^2+$F$6*G170 -> 0.003656101969 | H171: =-LN(G171)-F171^2/G171 -> 5.570909981
D172: 2002-04-26 | E172: 127.88 | F172: -0.01924588437 | G172: =$D$6+$E$6*F172^2+$F$6*G171 -> 0.003671605041 | H172: =-LN(G172)-F172^2/G172 -> 5.506242954
D173: 2002-05-03 | E173: 126.95 | F173: -0.007299016041 | G173: =$D$6+$E$6*F173^2+$F$6*G172 -> 0.003652759748 | H173: =-LN(G173)-F173^2/G173 -> 5.597687265
D174: 2002-05-10 | E174: 127.62 | F174: 0.00526379029 | G174: =$D$6+$E$6*F174^2+$F$6*G173 -> 0.003634561339 | H174: =-LN(G174)-F174^2/G174 -> 5.609643515
D175: 2002-05-17 | E175: 125.95 | F175: -0.01317209564 | G175: =$D$6+$E$6*F175^2+$F$6*G174 -> 0.003634036322 | H175: =-LN(G175)-F175^2/G175 -> 5.569667129
D176: 2002-05-24 | E176: 124.76 | F176: -0.009493111059 | G176: =$D$6+$E$6*F176^2+$F$6*G175 -> 0.003625262063 | H176: =-LN(G176)-F176^2/G176 -> 5.59497004
D177: 2002-05-31 | E177: 124.12 | F177: -0.005143052159 | G177: =$D$6+$E$6*F177^2+$F$6*G176 -> 0.003611612611 | H177: =-LN(G177)-F177^2/G177 -> 5.616277029
D178: 2002-06-07 | E178: 124.35 | F178: 0.001851330669 | G178: =$D$6+$E$6*F178^2+$F$6*G177 -> 0.00359798121 | H178: =-LN(G178)-F178^2/G178 -> 5.626429769
D179: 2002-06-14 | E179: 124.17 | F179: -0.001448575821 | G179: =$D$6+$E$6*F179^2+$F$6*G178 -> 0.003586534241 | H179: =-LN(G179)-F179^2/G179 -> 5.629983866
D180: 2002-06-21 | E180: 121.175 | F180: -0.0244158127 | G180: =$D$6+$E$6*F180^2+$F$6*G179 -> 0.003636436611 | H180: =-LN(G180)-F180^2/G180 -> 5.452818044
D181: 2002-06-28 | E181: 119.585 | F181: -0.01320836614 | G181: =$D$6+$E$6*F181^2+$F$6*G180 -> 0.003635688481 | H181: =-LN(G181)-F181^2/G181 -> 5.568971116
D182: 2002-07-05 | E182: 120.375 | F182: 0.006584454527 | G182: =$D$6+$E$6*F182^2+$F$6*G181 -> 0.003621956943 | H182: =-LN(G182)-F182^2/G182 -> 5.608770747
D183: 2002-07-12 | E183: 116.905 | F183: -0.02925023096 | G183: =$D$6+$E$6*F183^2+$F$6*G182 -> 0.003691781864 | H183: =-LN(G183)-F183^2/G183 -> 5.36989454
D184: 2002-07-19 | E184: 115.95 | F184: -0.008202575461 | G184: =$D$6+$E$6*F184^2+$F$6*G183 -> 0.003670907172 | H184: =-LN(G184)-F184^2/G184 -> 5.588987956
D185: 2002-07-26 | E185: 118.83 | F185: 0.0245348366 | G185: =$D$6+$E$6*F185^2+$F$6*G184 -> 0.003707048773 | H185: =-LN(G185)-F185^2/G185 -> 5.43513714
D186: 2002-08-02 | E186: 118.755 | F186: -0.0006313530104 | G186: =$D$6+$E$6*F186^2+$F$6*G185 -> 0.003676890342 | H186: =-LN(G186)-F186^2/G186 -> 5.605579491
D187: 2002-08-09 | E187: 120.095 | F187: 0.01122054895 | G187: =$D$6+$E$6*F187^2+$F$6*G186 -> 0.003664409056 | H187: =-LN(G187)-F187^2/G187 -> 5.574730482
D188: 2002-08-16 | E188: 117.62 | F188: -0.02082400721 | G188: =$D$6+$E$6*F188^2+$F$6*G187 -> 0.003684823444 | H188: =-LN(G188)-F188^2/G188 -> 5.485850155
D189: 2002-08-23 | E189: 119.63 | F189: 0.01694455715 | G189: =$D$6+$E$6*F189^2+$F$6*G188 -> 0.00368711526 | H189: =-LN(G189)-F189^2/G189 -> 5.525040261
D190: 2002-08-30 | E190: 118.45 | F190: -0.009912715578 | G190: =$D$6+$E$6*F190^2+$F$6*G189 -> 0.003670131859 | H190: =-LN(G190)-F190^2/G190 -> 5.580754283
D191: 2002-09-06 | E191: 118.51 | F191: 0.0005064145956 | G191: =$D$6+$E$6*F191^2+$F$6*G190 -> 0.003646235089 | H191: =-LN(G191)-F191^2/G191 -> 5.613989792
D192: 2002-09-13 | E192: 121.66 | F192: 0.02623292369 | G192: =$D$6+$E$6*F192^2+$F$6*G191 -> 0.003695191752 | H192: =-LN(G192)-F192^2/G192 -> 5.414489928
D193: 2002-09-20 | E193: 123.34 | F193: 0.01371450067 | G193: =$D$6+$E$6*F193^2+$F$6*G192 -> 0.003685817907 | H193: =-LN(G193)-F193^2/G193 -> 5.552232757
D194: 2002-09-27 | E194: 122.545 | F194: -0.006466460095 | G194: =$D$6+$E$6*F194^2+$F$6*G193 -> 0.003663410374 | H194: =-LN(G194)-F194^2/G194 -> 5.597946513
D195: 2002-10-04 | E195: 123.26 | F195: 0.005817636066 | G195: =$D$6+$E$6*F195^2+$F$6*G194 -> 0.003644015099 | H195: =-LN(G195)-F195^2/G195 -> 5.605381354
D196: 2002-10-11 | E196: 124 | F196: 0.005985620071 | G196: =$D$6+$E$6*F196^2+$F$6*G195 -> 0.003628115297 | H196: =-LN(G196)-F196^2/G196 -> 5.609166965
D197: 2002-10-18 | E197: 125.555 | F197: 0.01246234398 | G197: =$D$6+$E$6*F197^2+$F$6*G196 -> 0.003626866698 | H197: =-LN(G197)-F197^2/G197 -> 5.576564081
D198: 2002-10-25 | E198: 124.31 | F198: -0.009965463778 | G198: =$D$6+$E$6*F198^2+$F$6*G197 -> 0.003620230406 | H198: =-LN(G198)-F198^2/G198 -> 5.593785522
D199: 2002-11-01 | E199: 122.265 | F199: -0.01658762559 | G199: =$D$6+$E$6*F199^2+$F$6*G198 -> 0.00363230617 | H199: =-LN(G199)-F199^2/G199 -> 5.542136938
D200: 2002-11-08 | E200: 119.81 | F200: -0.02028366556 | G200: =$D$6+$E$6*F200^2+$F$6*G199 -> 0.00365595683 | H200: =-LN(G200)-F200^2/G200 -> 5.498861343
D201: 2002-11-15 | E201: 120.495 | F201: 0.005701103642 | G201: =$D$6+$E$6*F201^2+$F$6*G200 -> 0.003637694427 | H201: =-LN(G201)-F201^2/G201 -> 5.607470257
D202: 2002-11-22 | E202: 122.945 | F202: 0.0201288426 | G202: =$D$6+$E$6*F202^2+$F$6*G201 -> 0.003659803405 | H202: =-LN(G202)-F202^2/G202 -> 5.499637632
D203: 2002-11-29 | E203: 122.53 | F203: =LN(E203/E202) -> -0.003381202936 | G203: =$D$6+$E$6*F203^2+$F$6*G202 -> 0.003638780079 | H203: =-LN(G203)-F203^2/G203 -> 5.612964938
... 328 more rows

Sheet VIX
A1: Date,VIX Open,VIX High,VIX Low,VIX Close
A2: 1/2/2004,17.96,18.68,17.54,18.22
A3: 1/5/2004,18.45,18.49,17.44,17.49
A4: 1/6/2004,17.66,17.67,16.19,16.73
A5: 1/7/2004,16.72,16.75,15.5,15.5
A6: 1/8/2004,15.42,15.68,15.32,15.61
A7: 1/9/2004,16.15,16.88,15.57,16.75
A8: 1/12/2004,17.32,17.46,16.79,16.82
A9: 1/13/2004,16.6,18.33,16.53,18.04
A10: 1/14/2004,17.29,17.3,16.4,16.75
A11: 1/15/2004,17.07,17.31,15.49,15.56
A12: 1/16/2004,15.4,15.44,14.9,15
A13: 1/20/2004,15.77,16.13,15.09,15.21
A14: 1/21/2004,15.63,15.63,14.24,14.34
A15: 1/22/2004,14.2,14.87,14.01,14.71
A16: 1/23/2004,14.73,15.05,14.56,14.84
A17: 1/26/2004,15.78,15.78,14.52,14.55
A18: 1/27/2004,15.28,15.44,14.74,15.35
A19: 1/28/2004,15.37,17.06,15.29,16.78
A20: 1/29/2004,16.88,17.66,16.79,17.14
A21: 1/30/2004,16.55,17.35,16.55,16.63
A22: 2/2/2004,17.45,17.56,16.67,17.11
A23: 2/3/2004,17.29,17.78,17.17,17.34
A24: 2/4/2004,17.84,18.06,17.46,17.87
A25: 2/5/2004,17.91,17.99,17.6,17.71
A26: 2/6/2004,17.71,17.71,15.94,16
A27: 2/9/2004,16.54,16.82,16.12,16.39
A28: 2/10/2004,16.41,16.76,15.84,15.94
A29: 2/11/2004,15.9,16.16,15.26,15.39
A30: 2/12/2004,15.36,15.72,15.23,15.31
A31: 2/13/2004,15.12,16.03,14.86,15.58
A32: 2/17/2004,15.63,15.96,15.32,15.4
A33: 2/18/2004,15.51,15.76,15.3,15.59
A34: 2/19/2004,15.33,15.97,15.2,15.8
A35: 2/20/2004,15.85,16.55,15.82,16.04
A36: 2/23/2004,16.5,16.78,16.25,16.29
A37: 2/24/2004,16.38,16.76,15.77,15.9
A38: 2/25/2004,15.58,16.05,14.93,14.93
A39: 2/26/2004,15.32,15.33,14.69,14.83
A40: 2/27/2004,13.8,14.77,13.8,14.55
A41: 3/1/2004,14.91,15.05,14.4,14.44
A42: 3/2/2004,14.59,14.89,14.18,14.86
A43: 3/3/2004,14.73,15.27,14.47,14.55
A44: 3/4/2004,14.45,14.5,14.19,14.4
A45: 3/5/2004,14.81,14.82,13.83,14.48
A46: 3/8/2004,14.83,15.83,14.54,15.79
A47: 3/9/2004,15.57,16.74,15.56,16.6
A48: 3/10/2004,16.12,18.7,16.11,18.67
A49: 3/11/2004,18.81,20.69,17.63,20.67
A50: 3/12/2004,19.94,20.08,18.06,18.3
A51: 3/15/2004,18.98,21.39,18.86,21.13
A52: 3/16/2004,20.27,20.94,19.86,20.34
A53: 3/17/2004,19.54,19.55,17.98,18.11
A54: 3/18/2004,18.38,19.23,18.35,18.53
A55: 3/19/2004,17.98,19.25,17.89,19.15
A56: 3/22/2004,20.61,22.67,20.61,21.58
A57: 3/23/2004,21.06,21.33,20.01,20.67
A58: 3/24/2004,20.24,20.83,19.45,19.81
A59: 3/25/2004,19.58,19.58,17.61,17.88
A60: 3/26/2004,18.19,18.23,16.67,17.33
A61: 3/29/2004,17.11,17.17,16.29,16.5
A62: 3/30/2004,16.68,16.8,16.13,16.28
A63: 3/31/2004,16.33,16.96,16.23,16.74
A64: 4/1/2004,16.76,17.25,16.65,16.65
A65: 4/2/2004,15.21,16.55,15.21,15.64
A66: 4/5/2004,16.17,16.64,14.81,14.97
A67: 4/6/2004,15.35,15.53,15.07,15.32
A68: 4/7/2004,15.41,16.36,15.34,15.76
A69: 4/8/2004,14.96,16.82,14.96,16.26
A70: 4/12/2004,15.71,16.12,15,15.28
A71: 4/13/2004,15.29,17.98,15.29,17.26
A72: 4/14/2004,17.29,17.71,15.6,15.62
A73: 4/15/2004,16.02,16.78,15.22,15.74
A74: 4/16/2004,15.59,15.69,14.77,14.94
A75: 4/19/2004,15.73,16.08,15.33,15.42
A76: 4/20/2004,15.24,16.72,14.79,16.67
A77: 4/21/2004,16.61,16.94,15.55,15.6
A78: 4/22/2004,15.89,15.98,13.86,14.61
A79: 4/23/2004,14.42,14.56,13.89,14.01
A80: 4/26/2004,14.75,15.22,14.39,14.77
A81: 4/27/2004,15.05,15.17,14.37,15.07
A82: 4/28/2004,15.55,16.54,15.55,16.29
A83: 4/29/2004,16.36,17.27,15.87,16.6
A84: 4/30/2004,16.27,17.23,16.14,17.19
A85: 5/3/2004,17.69,17.72,16.61,16.62
A86: 5/4/2004,16.8,17.13,15.97,16.55
A87: 5/5/2004,16.43,16.55,15.64,15.77
A88: 5/6/2004,16.45,17.67,16.45,17.05
A89: 5/7/2004,17.22,18.17,16.44,18.13
A90: 5/10/2004,19.44,20.2,18.99,19.77
A91: 5/11/2004,19.23,19.28,17.94,18.57
A92: 5/12/2004,18.79,20.41,18.14,18.14
A93: 5/13/2004,18.78,18.92,17.97,18.86
A94: 5/14/2004,18.66,19.27,18.06,18.47
A95: 5/17/2004,19.7,20.45,19.65,19.96
A96: 5/18/2004,19.6,19.7,19.14,19.33
A97: 5/19/2004,18.48,18.93,17.58,18.93
A98: 5/20/2004,18.6,19.25,18.55,18.67
A99: 5/21/2004,18.73,18.74,18,18.49
A100: 5/24/2004,18.79,18.82,17.96,18.08
A101: 5/25/2004,18.41,18.42,15.73,15.96
A102: 5/26/2004,16.09,16.3,15.78,15.97
A103: 5/27/2004,15.74,15.86,15.19,15.28
A104: 5/28/2004,15.44,15.65,15.39,15.5
A105: 6/1/2004,16.6,16.96,16.19,16.3
A106: 6/2/2004,16.05,16.7,15.95,16.08
A107: 6/3/2004,16.43,17.04,16.16,17.03
A108: 6/4/2004,16.24,16.9,15.82,16.78
A109: 6/7/2004,16.6,16.7,15.33,15.39
A110: 6/8/2004,15.79,15.88,15,15.01
A111: 6/9/2004,14.56,15.46,14.56,15.39
A112: 6/10/2004,15.33,15.35,14.92,15.04
A113: 6/14/2004,15.54,16.36,15.54,16.07
A114: 6/15/2004,15.34,15.35,14.72,15.05
A115: 6/16/2004,14.83,15.22,14.48,14.79
A116: 6/17/2004,15.06,15.58,15,15.15
A117: 6/18/2004,14.74,15.25,14.51,14.99
A118: 6/21/2004,15.61,15.62,14.96,15.26
A119: 6/22/2004,15.44,15.64,14.31,14.31
A120: 6/23/2004,14.6,14.82,13.75,13.98
A121: 6/24/2004,14.39,14.97,14.16,14.81
A122: 6/25/2004,14.78,15.29,14.47,15.19
A123: 6/28/2004,15.28,16.13,15.19,16.07
A124: 6/29/2004,15.22,16.28,15.22,15.47
A125: 6/30/2004,15.27,15.73,14.25,14.34
A126: 7/1/2004,14.74,15.57,14.41,15.2
A127: 7/2/2004,15.23,15.45,14.8,15.08
A128: 7/6/2004,16.25,16.75,16.13,16.25
A129: 7/7/2004,16.36,16.47,15.59,15.81
A130: 7/8/2004,15.86,16.36,15.5,16.2
A131: 7/9/2004,16.01,16.03,15.71,15.78
A132: 7/12/2004,15.25,15.61,14.61,14.96
A133: 7/13/2004,14.86,15.08,14.28,14.46
A134: 7/14/2004,14.9,16.59,13.34,13.76
A135: 7/15/2004,13.94,14.73,13.6,14.71
A136: 7/16/2004,14.27,14.58,13.95,14.34
A137: 7/19/2004,15.17,15.83,14.86,15.17
A138: 7/20/2004,15.53,15.57,13.98,14.17
A139: 7/21/2004,14,16.46,13.91,16.41
A140: 7/22/2004,16.65,17.1,15.29,15.75
A141: 7/23/2004,15.82,16.94,15.82,16.5
A142: 7/26/2004,17.22,17.93,16.98,17.3
A143: 7/27/2004,17.24,17.34,16.3,16.55
A144: 7/28/2004,16.77,17.41,15.94,16.15
A145: 7/29/2004,16,16.12,15.42,15.68
A146: 7/30/2004,15.85,15.89,15.27,15.32
A147: 8/2/2004,16.42,16.58,15.22,15.37
A148: 8/3/2004,15.56,16.05,15.28,16.03
A149: 8/4/2004,16.33,16.65,15.82,16.21
A150: 8/5/2004,16.19,18.41,16.17,18.32
A151: 8/6/2004,18.21,19.68,18.18,19.34
A152: 8/9/2004,19.97,19.97,18.63,18.89
A153: 8/10/2004,18.8,18.86,17.25,17.47
A154: 8/11/2004,18.15,18.49,17.84,18.04
A155: 8/12/2004,18.61,19.3,18.36,19.08
A156: 8/13/2004,18.91,19.25,17.97,17.98
A157: 8/16/2004,19.28,19.28,17.42,17.57
A158: 8/17/2004,16.58,17.28,16.16,17.02
A159: 8/18/2004,17.55,17.55,16.13,16.23
A160: 8/19/2004,16.54,17.55,16.31,16.96
A161: 8/20/2004,16.99,17.04,15.78,16
A162: 8/23/2004,16.68,16.71,15.79,15.88
A163: 8/24/2004,15.63,15.81,15.33,15.33
A164: 8/25/2004,15.4,15.76,14.81,14.98
A165: 8/26/2004,15.22,15.22,14.76,14.91
A166: 8/27/2004,14.91,15.02,14.67,14.71
A167: 8/30/2004,15.35,15.58,15.3,15.44
A168: 8/31/2004,15.64,15.85,15.28,15.29
A169: 9/1/2004,15.39,15.39,14.72,14.91
A170: 9/2/2004,14.97,15.05,14.18,14.28
A171: 9/3/2004,14.36,14.38,13.79,13.91
A172: 9/7/2004,14.52,14.64,14.03,14.07
A173: 9/8/2004,14.16,14.31,13.88,14.06
A174: 9/9/2004,14.12,14.41,13.7,14.01
A175: 9/10/2004,13.9,14.23,13.69,13.76
A176: 9/13/2004,13.64,13.78,13.16,13.17
A177: 9/14/2004,13.5,13.89,13.5,13.56
A178: 9/15/2004,13.88,14.67,13.68,14.64
A179: 9/16/2004,14.29,14.66,14.27,14.39
A180: 9/17/2004,14.11,14.43,13.93,14.03
A181: 9/20/2004,13.98,15.29,13.98,14.43
A182: 9/21/2004,15.98,15.98,13.38,13.66
A183: 9/22/2004,15.28,15.3,13.95,14.74
A184: 9/23/2004,14.85,15.08,14.61,14.8
A185: 9/24/2004,14.93,14.94,14.08,14.28
A186: 9/27/2004,14.86,15.09,14.55,14.62
A187: 9/28/2004,14.73,14.84,13.69,13.83
A188: 9/29/2004,14.09,14.14,13.2,13.21
A189: 9/30/2004,13.49,13.67,13.2,13.34
A190: 10/1/2004,13.11,13.11,12.6,12.75
A191: 10/4/2004,13.05,13.45,12.99,13.41
A192: 10/5/2004,13.51,14.19,13.51,13.95
A193: 10/6/2004,14.01,14.1,13.24,13.28
A194: 10/7/2004,13.33,14.66,13.32,14.5
A195: 10/8/2004,14.7,15.52,13.78,15.05
A196: 10/11/2004,14.69,15.27,14.28,14.71
A197: 10/12/2004,15.21,15.69,14.91,15.05
A198: 10/13/2004,13.92,15.63,13.92,15.42
A199: 10/14/2004,15.22,16.56,15.22,16.43
A200: 10/15/2004,16.28,16.49,14.72,15.04
... 1356 more rows
